fUSD/lending_fUSD_20250324
["ID","MTS","AMOUNT","RATE_DAILY","PERIOD"]
[356606678,1742805045697,-26252.68271092,0.0001188,2]
[356606679,1742805045939,-272.022739,0.0001188,2]
[356606680,1742805077048,91214.0,0.00025,60]
[356606690,1742805775765,-199.94003464,0.000118,2]
[356606691,1742805775787,-150.0,0.0001186,2]
[356606692,1742805775808,-650.05996536,0.0001188,2]
[356606695,1742805787132,-1000.0,0.0001188,2]
[356606696,1742805796483,-1000.0,0.0001188,2]
[356606698,1742805805179,-1000.0,0.0001188,2]
[356606699,1742805820754,-500.0,0.0001188,2]
[356606743,1742806231886,-339.85637902,0.0001178,2]
[356606744,1742806231897,-150.0,0.0001179,2]
[356606745,1742806231906,-826.0,0.000118,2]
[356606746,1742806231916,-90.9436214,0.0001188,2]
[356606772,1742806237519,-1138.11372946,0.0001188,2]
[356606773,1742806237627,-1010.34382548,0.0001188,2]
[356606774,1742806237639,-21081.14400536,0.0001188,2]
[356606775,1742806237649,-151.3328582,0.000119,2]
[356606776,1742806237658,-298.0096,0.000119,2]
[356606777,1742806237667,-1566.11625566,0.000119,2]
[356606778,1742806237677,-8878.2291396,0.000119,2]
[356606779,1742806237686,-1234.86367984,0.000119,2]
[356606780,1742806237696,-1234.86367984,0.000119,2]
[356606781,1742806237705,-150.0,0.00011973,2]
[356606782,1742806237715,-152.76578532,0.00011993,2]
[356606783,1742806237725,-239.56690331,0.00011999,2]
[356606784,1742806237734,-306.99395308,0.00011999,2]
[356606785,1742806237744,-187.29476214,0.00011999,2]
[356606786,1742806237753,-465395.89884123,0.00012,2]
[356606787,1742806237768,-3029.27510308,0.00012,2]
[356606827,1742806245610,-497.12578567,0.00011999,2]
[356606828,1742806245620,-1685.32377273,0.00012,2]
[356606829,1742806245727,-36771.94559134,0.00012,2]
[356606830,1742806245769,-856.20926424,0.00012,2]
[356606831,1742806245844,-1307.89865001,0.00012,2]
[356606832,1742806245862,-178.86659786,0.000119,2]
[356606833,1742806245872,-696.12340214,0.00012,2]
[356606834,1742806245883,-56728.11343148,0.00012,2]
[356606849,1742806268226,200.0,0.000115,4]
[356606850,1742806270376,500.0,0.000116,4]
[356606851,1742806272463,800.0,0.000117,4]
[356606853,1742806274593,1100.0,0.000118,4]
[356606854,1742806276691,1300.0,0.000119,4]
[356606953,1742807431932,-1104.72,0.00011,2]
[356606954,1742807431941,-250.0,0.00011,2]
[356606955,1742807431951,-663.1451,0.000119,2]
[356606956,1742807431961,-35960.8256,0.000119,2]
[356606957,1742807431972,-605.7979,0.000119,2]
[356606958,1742807431982,-29481.904,0.000119,2]
[356606959,1742807431992,-157.31279808,0.000119,2]
[356606960,1742807432003,-1752.5858,0.000119,2]
[356606961,1742807432012,-223.6285,0.000119,2]
[356606962,1742807432023,-152.88805162,0.000119,2]
[356606963,1742807432032,-470.53967436,0.000119,2]
[356606964,1742807432042,-315.3528194,0.000119,2]
[356606965,1742807432053,-214.89576716,0.00011999,2]
[356606966,1742807432063,-150.42703701,0.00011999,2]
[356606967,1742807432073,-667966.5555566,0.00012,2]
[356606968,1742807432098,-8754.7,0.00012,2]
[356606969,1742807432147,-1212.17759608,0.00012,2]
[356606990,1742807437839,-1579.63621602,0.0001189,2]
[356606991,1742807437848,-1815.01102611,0.00012,2]
[356606993,1742807437860,-4584.40866984,0.00012,2]
[356606995,1742807437871,-2943.84242347,0.00012,2]
[356606997,1742807437882,-5508.92049053,0.00012,2]
[356606999,1742807437893,-832.25,0.00012,2]
[356607000,1742807437948,-818.65356322,0.00012,2]
[356607002,1742807437959,-1370.56052885,0.00012,2]
[356607005,1742807437971,-8829.0,0.00012,2]
[356607007,1742807437986,-158074.81569989,0.00012,2]
[356607009,1742807438002,-818.775,0.00012,2]
[356607013,1742807438058,-318.2061135,0.00012,2]
[356607014,1742807438070,-543.48961775,0.00012,2]
[356607016,1742807440037,-730.24469765,0.000119,2]
[356607017,1742807440046,-593.15454753,0.00012,2]
[356607018,1742807440059,-259.71546597,0.00012,2]
[356607019,1742807440071,-252.99453,0.00012,2]
[356607020,1742807440195,-193.44986861,0.000119,2]
[356607021,1742807440204,-9318.48972145,0.00012,2]
[356607022,1742807440216,-949.86556969,0.00012,2]
[356607023,1742807440353,-285.50502885,0.00012,2]
[356607024,1742807440364,-1508.16,0.00012,2]
[356607064,1742807443386,-537.35,0.00012,2]
[356607065,1742807443440,-1526.45094594,0.00012,2]
[356607066,1742807443452,-97610.97032153,0.00012,2]
[356607067,1742807443463,-541.54300055,0.00012,2]
[356607068,1742807443546,-1455.8536115,0.00012,2]
[356607069,1742807443558,-1711.87058023,0.00012,2]
[356607070,1742807443570,-2064.12524517,0.00012,2]
[356607071,1742807443601,-846.0,0.00012,2]
[356607072,1742807443611,-495.58079881,0.00012,2]
[356607073,1742807443623,-521.36638924,0.00012,2]
[356607074,1742807443634,-1647.79805118,0.00012,2]
[356607075,1742807443645,-1648.35826467,0.00012,2]
[356607076,1742807443660,-4247.95495849,0.00012,2]
[356607077,1742807443671,-4200.04995,0.00012,2]
[356607078,1742807443709,-296.21242944,0.00012,2]
[356607079,1742807443721,-443.4506406,0.00012,2]
[356607082,1742807445805,-394.58686553,0.00012,2]
[356607083,1742807446065,-1114.0,0.00012,2]
[356607084,1742807446120,-13946.7148303,0.00012,2]
[356607085,1742807446132,-594.97552424,0.00012,2]
[356607086,1742807446143,-1991.78971753,0.00012,2]
[356607087,1742807446173,-8150.95787752,0.00012,2]
[356607150,1742808052363,181.03501103,0.00025,60]
[356607187,1742808510220,1679.23841667,9.828e-05,2]
[356607332,1742808632045,-250.0,0.00011,2]
[356607333,1742808632055,-488.9470691,0.0001164,2]
[356607334,1742808632064,-657.358,0.0001176,2]
[356607335,1742808632074,-500.0,0.00011879,2]
[356607336,1742808632084,-500.0,0.00011879,2]
[356607337,1742808632093,-500.0,0.00011879,2]
[356607338,1742808632103,-500.0,0.00011879,2]
[356607339,1742808632112,-486.0447739,0.00011879,2]
[356607340,1742808632121,-4914.76015797,0.0001188,2]
[356607341,1742808632132,-641.60804426,0.0001188,2]
[356607342,1742808632203,-2763.19870811,0.00011581,2]
[356607349,1742808637932,-466.49632989,0.00011581,2]
[356607350,1742808637941,-36132.87302493,0.0001188,2]
[356607351,1742808637950,-456.0658,0.000119,2]
[356607352,1742808637959,-162.01330897,0.000119,2]
[356607353,1742808637968,-1977.85624234,0.000119,2]
[356607354,1742808637977,-157.31279807,0.00011984,2]
[356607355,1742808637988,-5428.514636,0.00011999,2]
[356607356,1742808637997,-24750.96983639,0.00012,2]
[356607357,1742808638198,-438.92440893,0.00012,2]
[356607368,1742808640379,-536.78422161,0.00012,2]
[356607369,1742808640432,-10822.67097391,0.00012,2]
[356607370,1742808640540,-21958.49302755,0.00012,2]
[356607382,1742808643111,-6745.47071883,0.00012,2]
[356607384,1742808643238,-250.10485488,0.00012,2]
[356607409,1742808646003,-2662.29989327,0.00012,2]
[356607442,1742808890214,786.03007243,0.00025,120]
[356607515,1742809694874,171.08,0.00025,60]
[356607544,1742809838095,-321.33,0.0001164,2]
[356607547,1742809838291,-45.3803018,0.0001164,2]
[356607548,1742809838300,-525.887,0.0001176,2]
[356607549,1742809838309,-157.31279807,0.000119,2]
[356607550,1742809838319,-162.01330896,0.000119,2]
[356607551,1742809838329,-581.8754672,0.000119,2]
[356607552,1742809838340,-252.90102083,0.000119,2]
[356607553,1742809838351,-483.79434021,0.000119,2]
[356607554,1742809838359,-390.71565979,0.0001199,2]
[356607555,1742809838371,-711.6083826,0.0001199,2]
[356607556,1742809838379,-266.76048458,0.00011999,2]
[356607557,1742809838394,-9.46671252,0.00011999,2]
[356607558,1742809838404,-500.0,0.00011999,2]
[356607559,1742809838413,-500.0,0.00011999,2]
[356607561,1742809838422,-402.2576758,0.00011999,2]
[356607563,1742809838431,-425.49284777,0.00011999,2]
[356607565,1742809838441,-839.0,0.00012,2]
[356607566,1742809838450,-3063.50761732,0.00012,2]
[356607610,1742809846281,-525.86964,0.00012,2]
[356607611,1742809846388,-224.13036,0.00012,2]
[356607612,1742809846399,-2193.05164,0.00012,2]
[356607613,1742809846443,-10955.81092486,0.00012,2]
[356607618,1742810041284,350.0,0.0001132,3]
[356607621,1742810622913,-250.0,0.00011,2]
[356607622,1742810622939,-150.0,0.0001132,2]
[356607623,1742810622965,-275.0327264,0.0001164,2]
[356607624,1742810622991,-420.709,0.0001176,2]
[356607625,1742810623016,-431.59951273,0.0001177,2]
[356607626,1742810623043,-150.0,0.00011899,2]
[356607627,1742810623068,-1147.6588,0.000119,2]
[356607628,1742810623095,-1733.2756,0.000119,2]
[356607629,1742810623122,-272.3735,0.000119,2]
[356607630,1742810623147,-1000.0,0.000119,2]
[356607631,1742810623171,-1147.6589,0.000119,2]
[356607632,1742810623195,-701.7514,0.000119,2]
[356607633,1742810623221,-677.7262,0.000119,2]
[356607634,1742810623245,-10709.6436,0.000119,2]
[356607635,1742810623270,-37543.9992,0.000119,2]
[356607636,1742810623300,-497.7794,0.000119,2]
[356607637,1742810623326,-3706.3559,0.000119,2]
[356607638,1742810623352,-1000.0,0.000119,2]
[356607639,1742810623533,-174.53961457,0.000119,2]
[356607640,1742810623562,-310.91528815,0.000119,2]
[356607641,1742810623590,-1003.45908973,0.00011999,2]
[356607642,1742810623617,-679.0,0.00012,2]
[356607643,1742810623637,-250.0,0.00012,2]
[356607644,1742810623650,-150.0,0.00012,2]
[356607645,1742810623661,-275.0327264,0.00012,2]
[356607646,1742810623672,-420.709,0.00012,2]
[356607647,1742810623683,-431.59951273,0.00012,2]
[356607648,1742810623695,-150.0,0.00012,2]
[356607649,1742810623710,-1147.6588,0.00012,2]
[356607650,1742810623721,-1733.2756,0.00012,2]
[356607651,1742810623733,-272.3735,0.00012,2]
[356607652,1742810623744,-1000.0,0.00012,2]
[356607653,1742810623755,-1147.6589,0.00012,2]
[356607654,1742810623768,-701.7514,0.00012,2]
[356607655,1742810623780,-677.7262,0.00012,2]
[356607656,1742810623793,-10709.6436,0.00012,2]
[356607657,1742810623805,-37543.9992,0.00012,2]
[356607658,1742810623821,-497.7794,0.00012,2]
[356607659,1742810623832,-3706.3559,0.00012,2]
[356607660,1742810623845,-1000.0,0.00012,2]
[356607661,1742810623858,-174.53961457,0.00012,2]
[356607662,1742810623871,-310.91528815,0.00012,2]
[356607663,1742810623884,-1003.45908973,0.00012,2]
[356607664,1742810623896,-679.0,0.00012,2]
[356607665,1742810623907,-1431067.04453684,0.00012,2]
[356607680,1742810991796,204.0,0.00011,3]
[356607688,1742811031506,-182.10168646,0.000119,2]
[356607689,1742811031515,-499.49519634,0.000119,2]
[356607690,1742811031563,-633.65480366,0.000119,2]
[356607691,1742811031572,-315.28415647,0.000119,2]
[356607692,1742811031583,-7211.0,0.000119,2]
[356607693,1742811031613,-1410.54215506,0.000119,2]
[356607694,1742811031624,-3888.55588847,0.000119,2]
[356607695,1742811031633,-153.348692,0.000119,2]
[356607696,1742811031643,-150.0,0.00011925,2]
[356607697,1742811031652,-2212.3678519,0.00011996,2]
[356607698,1742811031661,-591.91785732,0.00011996,2]
[356607699,1742811031672,-284.23252147,0.00011996,2]
[356607700,1742811031683,-1073.51207392,0.00011996,2]
[356607701,1742811031695,-68.18106039,0.00011996,2]
[356607702,1742811031704,-150.0,0.00011999,2]
[356607703,1742811031713,-608.0,0.00012,2]
[356607704,1742811031723,-7027.60449642,0.00012,2]
[356607705,1742811031734,-541.345,0.00012,2]
[356607706,1742811031745,-14160.51205207,0.00012,2]
[356607713,1742811037359,-186121.15542447,0.00012,2]
[356607714,1742811037464,-2300.80000002,0.00012,2]
[356607715,1742811037570,-4975.35285482,0.00012,2]
[356607716,1742811037581,-1563.46598488,0.00012,2]
[356607717,1742811037623,-317.02390423,0.00012,2]
[356607718,1742811037634,-311.184893,0.00012,2]
[356607719,1742811039612,-547.0,0.00012,2]
[356607720,1742811039622,-817.09999999,0.00012,2]
[356607731,1742811043039,-846.35410222,0.00012,2]
[356607743,1742811044150,-702.25154985,0.00012,2]
[356607746,1742811045590,-5528.9851691,0.00012,2]
[356607747,1742811045696,-8623.08215343,0.00012,2]
[356607761,1742811721599,350.0,0.0001177,3]
[356607762,1742811842092,350.0,0.00011695,3]
[356607763,1742812025648,150.0,0.00011433,7]
[356607771,1742812217841,-250.0,0.00011,2]
[356607772,1742812217864,-150.0,0.0001117,2]
[356607773,1742812217889,-243.31,0.00011339,2]
[356607781,1742812231560,-553.5323311,0.00011339,2]
[356607782,1742812231573,-430.86617395,0.00011339,2]
[356607783,1742812231668,-618.59149495,0.00011339,2]
[356607784,1742812231681,-300.0,0.00011339,2]
[356607785,1742812231692,-897.40883987,0.00011358,2]
[356607786,1742812231723,-102.11116013,0.00011358,2]
[356607787,1742812231736,-653.25199849,0.00011358,2]
[356607788,1742812231833,-346.74800151,0.00011358,2]
[356607789,1742812231844,-166.23,0.00011394,2]
[356607790,1742812231856,-159.72883987,0.00011394,2]
[356607791,1742812231870,-256.25013672,0.00011394,2]
[356607792,1742812231884,-455.46102341,0.00011394,2]
[356607793,1742812231895,-1137.83366494,0.00011394,2]
[356607794,1742812231922,-526.6,0.00011282,2]
[356607795,1742812231934,-276.50705438,0.00011394,2]
[356607844,1742812237503,-1687.08928068,0.00011394,2]
[356607845,1742812237514,-52.95327626,0.00011494,2]
[356607846,1742812237615,-8579.04672374,0.00011494,2]
[356607847,1742812237626,-487.0,0.000116,2]
[356607848,1742812237637,-174.39,0.00011632,2]
[356607849,1742812237647,-742.48,0.00011632,2]
[356607850,1742812237658,-153.9,0.0001165,2]
[356607851,1742812237669,-1434.0,0.000117,2]
[356607852,1742812237680,-1160.96086491,0.0001188,2]
[356607853,1742812237693,-338.54713904,0.0001188,2]
[356607854,1742812237722,-4520.89694847,0.0001188,2]
[356607855,1742812237734,-200.0,0.0001189,2]
[356607856,1742812237745,-150.0,0.00011899,2]
[356607857,1742812237756,-1340.4843,0.000119,2]
[356607858,1742812237767,-1232.6494,0.000119,2]
[356607859,1742812237778,-223.6285,0.000119,2]
[356607860,1742812237791,-326.2476,0.000119,2]
[356607861,1742812237802,-2018.53,0.000119,2]
[356607862,1742812237814,-310.91528815,0.000119,2]
[356607863,1742812237824,-153.34869192,0.000119,2]
[356607865,1742812237833,-153.34869192,0.00011904,2]
[356607867,1742812237843,-153.34869192,0.00011908,2]
[356607874,1742812238011,-153.34869192,0.00011912,2]
[356607875,1742812238030,-153.34869192,0.00011916,2]
[356607876,1742812238040,-9797.04227519,0.00011928,2]
[356607877,1742812238050,-500.0,0.00011945,2]
[356607878,1742812238059,-162.97323485,0.00011973,2]
[356607879,1742812238069,-152.63632682,0.00011973,2]
[356607880,1742812238079,-8230.83749662,0.0001199,2]
[356607881,1742812238088,-3580.31747317,0.0001199,2]
[356607882,1742812238098,-4080.02793018,0.00011999,2]
[356607883,1742812238107,-336.568,0.00011999,2]
[356607884,1742812238117,-577.0,0.00012,2]
[356607885,1742812238127,-402289.13385557,0.00012,2]
[356607886,1742812238139,-412.945,0.00012,2]
[356607899,1742812239784,-332.90552008,0.00012,2]
[356607900,1742812240261,-2002657.2649653,0.00012,2]
[356607901,1742812240271,-108036.99672799,0.00012,2]
[356607902,1742812240280,-548311.69820795,0.00012,2]
[356607963,1742812243407,-153.34869192,0.0001192,2]
[356607965,1742812243417,-595.0,0.00012,2]
[356607967,1742812243427,-94679.22153975,0.00012,2]
[356607987,1742812255170,-153.34869192,0.00011924,2]
[356607988,1742812255193,-91.89085573,0.00011928,2]
[356607989,1742812263705,-215.50537936,0.0001188,2]
[356607990,1742812272483,-215.53962064,0.0001188,2]
[356607999,1742813039163,8012.73403503,0.00011449,5]
[356608002,1742813122469,150.0,0.00011424,7]
[356608012,1742813431747,-662.62,0.00011358,2]
[356608013,1742813431756,-1000.0,0.00011358,2]
[356608014,1742813431765,-1466.47,0.00011449,2]
[356608016,1742813431774,-6628.03817506,0.00011539,2]
[356608017,1742813431799,-1989.92150535,0.00011539,2]
[356608018,1742813431811,-1845.97621252,0.00011539,2]
[356608019,1742813431822,-13436.06410707,0.00011539,2]
[356608020,1742813431831,-663.55,0.00011676,2]
[356608021,1742813431841,-1500.0,0.00011754,2]
[356608022,1742813431850,-150.7,0.00011833,2]
[356608023,1742813431859,-8387.65905228,0.0001188,2]
[356608024,1742813431868,-150.0,0.00011899,2]
[356608025,1742813431877,-500.0,0.00011899,2]
[356608026,1742813431887,-411.97156954,0.00011899,2]
[356608027,1742813431896,-403.43586162,0.00011899,2]
[356608028,1742813431905,-9940.79421909,0.000119,2]
[356608029,1742813431916,-16459.95348091,0.000119,2]
[356608030,1742813431926,-673.7915,0.000119,2]
[356608031,1742813431936,-2169.0743,0.000119,2]
[356608032,1742813431950,-563.238,0.000119,2]
[356608033,1742813431958,-208.41845715,0.00011904,2]
[356608034,1742813431968,-1160.84021142,0.00011921,2]
[356608035,1742813431977,-150.0,0.00011931,2]
[356608036,1742813431988,-942.45341991,0.00011937,2]
[356608037,1742813431997,-161.31071246,0.00011953,2]
[356608038,1742813432006,-505.94063726,0.00011973,2]
[356608039,1742813432016,-155.18286884,0.00011973,2]
[356608040,1742813432026,-500.0,0.00011973,2]
[356608041,1742813432036,-180.97525855,0.00011973,2]
[356608042,1742813432045,-189.316,0.00011996,2]
[356608043,1742813432054,-398.836,0.00011999,2]
[356608044,1742813432064,-165.32602615,0.00011999,2]
[356608045,1742813432073,-84895.12003822,0.00012,2]
[356608046,1742813432084,-670.41993916,0.00012,2]
[356608047,1742813432096,-308422.33034389,0.00012,2]
[356608048,1742813432107,-231767.28484783,0.00012,2]
[356608049,1742813432119,-269.355,0.00012,2]
[356608050,1742813432130,-1060.71101525,0.00012,2]
[356608051,1742813432145,-878.9,0.00012,2]
[356608052,1742813432155,-1209.496,0.00012,2]
[356608053,1742813432166,-7858.54724254,0.00012,2]
[356608054,1742813432182,-509.00182834,0.00012,2]
[356608055,1742813432194,-2607.62181888,0.00012,2]
[356608062,1742813437669,-10812.86135482,0.00012,2]
[356608063,1742813437681,-14346.80758099,0.00012,2]
[356608064,1742813437692,-44992.66997995,0.00012,2]
[356608065,1742813437774,-42137.07717442,0.00012,2]
[356608066,1742813437828,-191666.1273144,0.00012,2]
[356608067,1742813437883,-248697.80457492,0.00012,2]
[356608087,1742813439868,-48614.99688728,0.00012,2]
[356608088,1742813440030,-1720403.68753601,0.00012,2]
[356608089,1742813440041,-2232.0819893,0.00012021,2]
[356608090,1742813440051,-373.5206705,0.00012029,2]
[356608091,1742813440060,-3705.3885844,0.00012037,2]
[356608092,1742813440069,-250.0,0.00012061,2]
[356608093,1742813440078,-200.0,0.00012074,2]
[356608094,1742813440088,-1213.0,0.000122,3]
[356608095,1742813440097,-150.0,0.00012494,2]
[356608096,1742813440106,-150.0,0.00012494,2]
[356608097,1742813440116,-150.0,0.00012494,2]
[356608098,1742813440126,-863.48,0.00012564,2]
[356608099,1742813440135,-5552.0,0.000126,5]
[356608100,1742813440145,-1000.0,0.00012777,2]
[356608101,1742813440154,-350.0,0.00012815,3]
[356608102,1742813440163,-5630.04793423,0.00012883,2]
[356608103,1742813440172,-1980.77419785,0.000129,2]
[356608104,1742813440182,-350.0,0.00012915,3]
[356608105,1742813440191,-255.0,0.00012982,2]
[356608106,1742813440200,-300.0,0.00013,2]
[356608107,1742813440209,-174.39,0.00013086,2]
[356608108,1742813440219,-200.0,0.00013699,2]
[356608109,1742813440229,-500.0,0.00013699,2]
[356608110,1742813440238,-642.0,0.00013725,2]
[356608111,1742813440247,-1281.0,0.00013725,2]
[356608112,1742813440257,-152.788,0.00013725,2]
[356608113,1742813440267,-2037.0,0.00013725,2]
[356608114,1742813440276,-1429.106,0.00013725,2]
[356608115,1742813440286,-717.58,0.00013725,2]
[356608116,1742813440296,-788.0,0.00013725,2]
[356608117,1742813440306,-1273.0,0.00013725,2]
[356608118,1742813440315,-608.726,0.00013725,2]
[356608119,1742813440325,-4086.0,0.00013725,2]
[356608120,1742813440334,-1445.163,0.00013725,2]
[356608121,1742813440344,-933.139,0.00013725,2]
[356608122,1742813440354,-277.308,0.00013725,2]
[356608123,1742813440363,-1159.002,0.00013725,2]
[356608124,1742813440372,-233.0,0.00013725,2]
[356608125,1742813440382,-3942.0,0.00013725,2]
[356608126,1742813440391,-152.524,0.00013725,2]
[356608127,1742813440401,-1160.8402114,0.00014122,2]
[356608128,1742813440411,-942.4534199,0.00014136,2]
[356608129,1742813440420,-411.0,0.0001416,2]
[356608130,1742813440430,-1000.0,0.00014197,2]
[356608131,1742813440439,-167.08,0.0001448,2]
[356608132,1742813440449,-196.78,0.00014525,2]
[356608133,1742813440459,-937.84,0.00014531,2]
[356608135,1742813440468,-174.39,0.0001454,2]
[356608137,1742813440477,-6539.11,0.00014636,2]
[356608139,1742813440487,-500.0,0.00014646,2]
[356608141,1742813440496,-150.7,0.00014791,2]
[356608143,1742813440506,-863.48,0.00014828,2]
[356608145,1742813440515,-350.0,0.00015,2]
[356608147,1742813440525,-300.0,0.00015068,2]
[356608149,1742813440534,-184.99,0.00015071,2]
[356608151,1742813440544,-1521.18,0.00015083,2]
[356608153,1742813440554,-1521.18,0.00015115,2]
[356608156,1742813440563,-171.1,0.00015124,2]
[356608158,1742813440573,-1521.18,0.00015147,2]
[356608159,1742813440583,-1521.18,0.00015179,2]
[356608161,1742813440592,-1521.18,0.0001521,2]
[356608163,1742813440601,-1521.18,0.00015242,2]
[356608165,1742813440611,-1521.18,0.00015274,2]
[356608167,1742813440620,-1521.18,0.00015306,2]
[356608169,1742813440629,-500.0,0.0001531,2]
[356608171,1742813440638,-500.0,0.0001531,2]
[356608173,1742813440647,-533.0,0.0001531,2]
[356608175,1742813440656,-1521.18,0.00015338,2]
[356608177,1742813440666,-1521.18,0.00015369,2]
[356608179,1742813440675,-1521.18,0.00015401,2]
[356608181,1742813440684,-1521.18,0.00015433,2]
[356608183,1742813440694,-1521.18,0.00015465,2]
[356608185,1742813440703,-1521.18,0.00015496,2]
[356608187,1742813440712,-1521.18,0.00015528,2]
[356608189,1742813440721,-1521.18,0.0001556,2]
[356608191,1742813440731,-1521.18,0.00015592,2]
[356608193,1742813440740,-1000.0,0.00015617,2]
[356608195,1742813440750,-1521.18,0.00015623,2]
[356608197,1742813440759,-1521.18,0.00015655,2]
[356608199,1742813440769,-1521.18,0.00015687,2]
[356608201,1742813440779,-167.08,0.00015687,2]
[356608203,1742813440789,-174.39,0.00015994,2]
[356608205,1742813440798,-1160.8402114,0.00016322,2]
[356608207,1742813440808,-942.4534199,0.00016335,2]
[356608209,1742813440817,-300.0,0.00016438,2]
[356608211,1742813440826,-642.0,0.00016725,2]
[356608213,1742813440835,-1281.0,0.00016725,2]
[356608215,1742813440844,-2037.0,0.00016725,2]
[356608216,1742813440853,-1421.0,0.00016725,2]
[356608218,1742813440863,-572.0,0.00016725,2]
[356608220,1742813440872,-788.0,0.00016725,2]
[356608222,1742813440882,-1273.0,0.00016725,2]
[356608224,1742813440891,-542.0,0.00016725,2]
[356608226,1742813440900,-4086.0,0.00016725,2]
[356608228,1742813440910,-1431.0,0.00016725,2]
[356608230,1742813440919,-907.0,0.00016725,2]
[356608232,1742813440929,-150.0,0.00016725,2]
[356608234,1742813440942,-1015.0,0.00016725,2]
[356608236,1742813440953,-3942.0,0.00016725,2]
[356608239,1742813440963,-151.0,0.00016725,2]
[356608241,1742813440973,-167.08,0.00016894,2]
[356608243,1742813440983,-501.71812239,0.000169,2]
[356608245,1742813440992,-4386.39,0.00016922,2]
[356608247,1742813441001,-619.67,0.00016922,2]
[356608248,1742813441010,-9999.99,0.00016922,2]
[356608251,1742813441024,-400.0,0.00017,2]
[356608252,1742813441033,-1000.0,0.00017037,2]
[356608255,1742813441043,-863.48,0.00017092,2]
[356608256,1742813441052,-156.14,0.00017131,2]
[356608258,1742813441061,-156.14,0.00017302,2]
[356608260,1742813441071,-174.39,0.00017448,2]
[356608262,1742813441080,-1000.0,0.00017452,2]
[356608264,1742813441090,-156.14,0.00017473,2]
[356608266,1742813441099,-171.1,0.00017621,2]
[356608268,1742813441108,-156.14,0.00017645,2]
[356608270,1742813441118,-159.09,0.00017667,2]
[356608272,1742813441127,-3190.82,0.00017728,2]
[356608274,1742813441136,-150.99,0.00017728,2]
[356608276,1742813441146,-299.99,0.00017728,4]
[356608278,1742813441155,-499.99,0.00017728,2]
[356608280,1742813441165,-2797.06,0.00017728,2]
[356608281,1742813441175,-2599.56,0.00017728,2]
[356608282,1742813441185,-150.7,0.00017749,2]
[356608283,1742813441194,-600.0,0.00017808,2]
[356608284,1742813441203,-156.14,0.00017816,2]
[356608285,1742813441212,-159.09,0.00017838,2]
[356608286,1742813441221,-200.0,0.00018082,2]
[356608287,1742813441231,-167.08,0.000181,2]
[356608288,1742813441240,-1160.8402114,0.00018523,2]
[356608289,1742813441250,-942.4534199,0.00018534,2]
[356608290,1742813441259,-157.66,0.000186,2]
[356608291,1742813441268,-187.66,0.00018877,2]
[356608292,1742813441278,-33799.84162786,0.00019,2]
[356608293,1742813441288,-450.0,0.00019,2]
[356608294,1742813441297,-298.75026735,0.00019,2]
[356608296,1742813441308,-897.61071034,0.00019,2]
[356608298,1742813441317,-167.08,0.00019307,2]
[356608300,1742813441326,-159.09,0.0001931,2]
[356608302,1742813441336,-863.48,0.00019356,2]
[356608304,1742813441346,-52401.80934266,0.000196,2]
[356608306,1742813441355,-642.0,0.00019725,2]
[356608308,1742813441365,-1281.0,0.00019725,2]
[356608310,1742813441375,-2037.0,0.00019725,2]
[356608312,1742813441384,-1421.0,0.00019725,2]
[356608314,1742813441394,-572.0,0.00019725,2]
[356608316,1742813441404,-788.0,0.00019725,2]
[356608318,1742813441413,-1273.0,0.00019725,2]
[356608320,1742813441423,-542.0,0.00019725,2]